Workbook

Sheet Shift_1
B1: T | C1: T | E1: T | I1: T | L1: T | M1: T | N1: T | O1: T | R1: T | T1: T | U1: T | V1: T | W1: T
A2: Date | B2: Start Time | C2: End Time | D2: Total | E2: Machine No. | F2: Machine Name | G2: Capisty Power (Kgs / Shift ) | H2: Capisty Power Rate (KGS / 1 HRS) | I2: Minmum Power ( Kgs / Shift ) | J2: Minimum Power Rate (KGS / 1 HRS) | K2: Acual Production (KGS / 1 HRS) | L2: Production rate per Shift | M2: Gm/ML | N2: Size MM | O2: Drawing | P2: Mtrs \ KILO | Q2: MTRS \ SHIFT | R2: Color | S2: Shift | T2: Machine Operator | U2: Supervisor | V2: Po. No. | W2: Comment | AG2: 0.05 | AH2: Black | AI2: منصور محمد منصور | AJ2: محمد | AK2: Machine number | AL2: Machine Name | AM2: Machine Type
A3: =IF(E3="","",IF(A3="",TODAY(),A3)) -> 2019-02-20 | B3: 09:00:00 | C3: 16:00:00 | D3: =IF(B3="","",(C3-B3)) -> 07:00:00 | E3: 1 | F3: =IFERROR(VLOOKUP(E3,$AK$3:$AM$317,2,FALSE),"") -> Crosha COMEZ 2017 | H3: =IFERROR(G3/D3/24,"") -> 0 | I3: 8.5 | J3: =IFERROR(I3/D3/24,"") -> 1.214285714 | K3: =IFERROR(L3/D3/24,"") -> 2.142857143 | L3: 15 | M3: 3 | N3: 0.06 | O3: yyyyy | P3: =IFERROR(ROUND(SUM(1000/M3),2),"") -> 333.33 | Q3: =IFERROR(ROUND(SUM(L3*P3),2),"") -> 4999.95 | R3: Black | S3: 1 | T3: علي مراد حسن | U3: محمود | V3: 1111 | W3: eeeee | AG3: 0.06 | AH3: White | AI3: علي مراد حسن | AJ3: محمود | AK3: 1 | AL3: Crosha COMEZ 2017 | AM3: 17.5
A4: =IF(E4="","",IF(A4="",TODAY(),A4)) -> 2019-02-20 | B4: 08:00:00 | C4: 15:45:00 | D4: =IF(B4="","",(C4-B4)) -> 07:45:00 | E4: 2 | F4: =IFERROR(VLOOKUP(E4,$AK$3:$AM$317,2,FALSE),"") -> Crosha COMEZ 2017 | H4: =IFERROR(G4/D4/24,"") -> 0 | I4: 10 | J4: =IFERROR(I4/D4/24,"") -> 1.290322581 | K4: =IFERROR(L4/D4/24,"") -> 2.322580645 | L4: 18 | M4: 3 | N4: 0.06 | O4: hhh | P4: =IFERROR(ROUND(SUM(1000/M4),2),"") -> 333.33 | Q4: =IFERROR(ROUND(SUM(L4*P4),2),"") -> 5999.94 | R4: White | S4: 1 | T4: ابراهيم محمود ابراهيم | U4: محمود | V4: 2222 | AG4: 0.07 | AH4: Black&White | AI4: ابراهيم محمود ابراهيم | AJ4: اسامة | AK4: 2 | AL4: Crosha COMEZ 2017 | AM4: 13.5
S5: 1 | AG5: 0.08 | AH5: A prominent Black | AI5: مسعد رمزي مسعد | AK5: 3 | AL5: Crosha F.COLLIC 1996 | AM5: 10.5
S6: 1 | AG6: 0.09 | AH6: A prominent White | AI6: عادل عزمي شنودة | AK6: 4 | AL6: Crosha F.COLLIC 1997 | AM6: 9.45
S7: 1 | AG7: 0.1 | AI7: صبحي محمد محمود | AK7: 5 | AL7: Crosha F.COLLIC 1996 | AM7: 9.1
S8: 1 | AG8: 0.11 | AI8: السيد محمد عبد العال | AK8: 6 | AL8: Crosha
S9: 1 | AG9: 0.12 | AI9: عادل سيف الله السيد | AK9: 7 | AL9: Crosha
S10: 1 | AG10: 0.13 | AI10: خالد السيد عبد القادر | AK10: 8 | AL10: Crosha
S11: 1 | AG11: 0.14 | AI11: عادل صادق بشير | AK11: 9 | AL11: Crosha
S12: 1 | AG12: 0.15 | AI12: روماني عطية حبشي | AK12: 10 | AL12: Crosha
S13: 1 | AG13: 0.16 | AI13: احمد صادق توفيق | AK13: 11 | AL13: Crosha
S14: 1 | AG14: 0.17 | AI14: دينا مجدي ابراهيم | AK14: 12 | AL14: Crosha
S15: 1 | AG15: 0.18 | AI15: علي فرج على محمد | AK15: 13 | AL15: Crosha
S16: 1 | AG16: 0.19 | AI16: بوسي السيد عبد المنعم | AK16: 14 | AL16: Crosha
S17: 1 | AG17: 0.2 | AI17: محمد محمد عبد الوهاب | AK17: 15 | AL17: Crosha
S18: 1 | AG18: 0.21 | AI18: سعيد الليثي جاب الله | AK18: 16 | AL18: Crosha
S19: 1 | AG19: 0.22 | AI19: احمد عبد الظاهر | AK19: 17 | AL19: Crosha
S20: 1 | AG20: 0.23 | AI20: مصطفى عبد النبي مصطفى | AK20: 18 | AL20: Crosha
S21: 1 | AG21: 0.24 | AI21: ابراهيم صبحي محمد السيد | AK21: 19 | AL21: Crosha
S22: 1 | AG22: 0.25 | AI22: خميس حسن حسنين | AK22: 20 | AL22: Crosha
S23: 1 | AG23: 0.26 | AI23: محمد حسني حسن | AK23: 21 | AL23: Crosha
S24: 1 | AG24: 0.27 | AI24: محمد عادل محمد محمد | AK24: 22 | AL24: Crosha
S25: 1 | AG25: 0.28 | AI25: السيد عبد الحميد اسماعيل | AK25: 23 | AL25: Crosha
P26: =IFERROR(ROUND(SUM(1000/M26),2),"") ->  | S26: 1 | AG26: 0.29 | AI26: ابراهيم محمد فتوح | AK26: 24 | AL26: Crosha
S27: 1 | AG27: 0.3 | AI27: عمرو محمد عبد الجليل | AK27: 25 | AL27: Crosha
S28: 1 | AG28: 0.31 | AI28: خالد مصطفى العوضي | AK28: 26 | AL28: Crosha
S29: 1 | AG29: 0.32 | AI29: حمادة احمد على النجار | AK29: 27 | AL29: Crosha
S30: 1 | AG30: 0.33 | AI30: عاطف وليم لبيب | AK30: 28 | AL30: Crosha
S31: 1 | AG31: 0.34 | AI31: عادل وليم نبيل | AK31: 29 | AL31: Crosha
S32: 1 | AG32: 0.35 | AI32: بيشوي عزت شفيق | AK32: 30 | AL32: Crosha
S33: 1 | AG33: 0.36 | AI33: محمد يحيى محمود | AK33: 31 | AL33: Crosha
S34: 1 | AG34: 0.37 | AI34: احمد رمضان احمد | AK34: 32 | AL34: Crosha
S35: 1 | AG35: 0.38 | AK35: 33 | AL35: Crosha
S36: 1 | AG36: 0.39 | AK36: 34 | AL36: Crosha
S37: 1 | AG37: 0.4 | AK37: 35 | AL37: Crosha
S38: 1 | AG38: 0.41 | AK38: 36 | AL38: Crosha
S39: 1 | AG39: 0.42 | AK39: 37 | AL39: Crosha
S40: 1 | AG40: 0.43 | AK40: 38 | AL40: Crosha
S41: 1 | AG41: 0.44 | AK41: 39 | AL41: Crosha
S42: 1 | AG42: 0.45 | AK42: 40 | AL42: Crosha
S43: 1 | AG43: 0.46 | AK43: 41 | AL43: Crosha
S44: 1 | AG44: 0.47 | AK44: 42 | AL44: Crosha
S45: 1 | AG45: 0.48 | AK45: 43 | AL45: Crosha
S46: 1 | AG46: 0.49 | AK46: 44 | AL46: Crosha
S47: 1 | AG47: 0.5 | AK47: 45 | AL47: Crosha
S48: 1 | AG48: 0.51 | AK48: 46 | AL48: Crosha
S49: 1 | AG49: 0.52 | AK49: 47 | AL49: Crosha
S50: 1 | AG50: 0.53 | AK50: 48 | AL50: Crosha
S51: 1 | AG51: 0.54 | AK51: 49 | AL51: Crosha
S52: 1 | AG52: 0.55 | AK52: 50 | AL52: Crosha
S53: 1 | AG53: 0.56 | AK53: 51 | AL53: Crosha
S54: 1 | AG54: 0.57 | AK54: 52 | AL54: Crosha
S55: 1 | AG55: 0.58 | AK55: 53 | AL55: Crosha
S56: 1 | AG56: 0.59 | AK56: 54 | AL56: Crosha
S57: 1 | AG57: 0.6 | AK57: 55 | AL57: Crosha
S58: 1 | AG58: 0.61 | AK58: 56 | AL58: Crosha
S59: 1 | AG59: 0.62 | AK59: 57 | AL59: Crosha
S60: 1 | AG60: 0.63 | AK60: 58 | AL60: Crosha
S61: 1 | AG61: 0.64 | AK61: 59 | AL61: Crosha
S62: 1 | AG62: 0.65 | AK62: 60 | AL62: Crosha
S63: 1 | AG63: 0.66 | AK63: 61 | AL63: Crosha
S64: 1 | AG64: 0.67 | AK64: 62 | AL64: Crosha
S65: 1 | AG65: 0.68 | AK65: 63 | AL65: Crosha
S66: 1 | AG66: 0.69 | AK66: 64 | AL66: Crosha
S67: 1 | AG67: 0.7 | AK67: 65 | AL67: Crosha
A68: =IF(E68="","",IF(A68="",TODAY(),A68)) ->  | D68: =IF(B68="","",(C68-B68)) ->  | F68: =IFERROR(VLOOKUP(E68,$AK$3:$AM$317,2,FALSE),"") ->  | H68: =IFERROR(G68/D68/24,"") ->  | J68: =IFERROR(I68/D68/24,"") ->  | K68: =IFERROR(L68/D68/24,"") ->  | Q68: =IFERROR(ROUND(SUM(L68*P68),2),"") ->  | S68: 1 | AG68: 0.71 | AK68: 66 | AL68: Crosha
S69: 1 | AG69: 0.72 | AK69: 67 | AL69: Crosha
S70: 1 | AG70: 0.73 | AK70: 68 | AL70: Crosha
S71: 1 | AG71: 0.74 | AK71: 69 | AL71: Crosha
S72: 1 | AG72: 0.75 | AK72: 70 | AL72: Crosha
S73: 1 | AG73: 0.76 | AK73: 71 | AL73: Crosha
S74: 1 | AG74: 0.77 | AK74: 72 | AL74: Crosha
S75: 1 | AG75: 0.78 | AK75: 73 | AL75: Crosha
S76: 1 | AG76: 0.79 | AK76: 74 | AL76: Crosha
S77: 1 | AG77: 0.8 | AK77: 75 | AL77: Crosha
S78: 1 | AG78: 0.81 | AK78: 76 | AL78: Crosha
S79: 1 | AG79: 0.82 | AK79: 77 | AL79: Crosha
S80: 1 | AG80: 0.83 | AK80: 78 | AL80: Crosha
S81: 1 | AG81: 0.84 | AK81: 79 | AL81: Crosha
S82: 1 | AG82: 0.85 | AK82: 80 | AL82: Crosha
S83: 1 | AG83: 0.86 | AK83: 81 | AL83: Crosha
S84: 1 | AG84: 0.87 | AK84: 82 | AL84: Crosha
S85: 1 | AG85: 0.88 | AK85: 83 | AL85: Crosha
S86: 1 | AG86: 0.89 | AK86: 84 | AL86: Crosha
S87: 1 | AG87: 0.9 | AK87: 85 | AL87: Crosha
S88: 1 | AG88: 0.91 | AK88: 86 | AL88: Crosha
S89: 1 | AG89: 0.92 | AK89: 87 | AL89: Crosha
P90: =IFERROR(ROUND(SUM(1000/M90),2),"") ->  | S90: 1 | AG90: 0.93 | AK90: 88 | AL90: Crosha
S91: 1 | AG91: 0.94 | AK91: 89 | AL91: Crosha
S92: 1 | AG92: 0.95 | AK92: 90 | AL92: Crosha
S93: 1 | AG93: 0.96 | AK93: 91 | AL93: Crosha
S94: 1 | AG94: 0.97 | AK94: 92 | AL94: Crosha
S95: 1 | AG95: 0.98 | AK95: 93 | AL95: Crosha
S96: 1 | AG96: 0.99 | AK96: 94 | AL96: Crosha
S97: 1 | AG97: 1 | AK97: 95 | AL97: Crosha
S98: 1 | AG98: 1.01 | AK98: 96 | AL98: Crosha
S99: 1 | AG99: 1.02 | AK99: 97 | AL99: Crosha
S100: 1 | AG100: 1.03 | AK100: 98 | AL100: Crosha
S101: 1 | AG101: 1.04 | AK101: 99 | AL101: Crosha
S102: 1 | AG102: 1.05 | AK102: 100 | AL102: Crosha
S103: 1 | AG103: 1.06 | AK103: 101 | AL103: Jakar - MULLER 2017 | AM103: 3.91
S104: 1 | AG104: 1.07 | AK104: 102 | AL104: Jakar - MULLER 2017 | AM104: 5.94
S105: 1 | AG105: 1.08 | AK105: 103 | AL105: Jakar
S106: 1 | AG106: 1.09 | AK106: 104 | AL106: Jakar
S107: 1 | AG107: 1.1 | AK107: 105 | AL107: Jakar
S108: 1 | AG108: 1.11 | AK108: 106 | AL108: Jakar
S109: 1 | AG109: 1.12 | AK109: 107 | AL109: Jakar
S110: 1 | AG110: 1.13 | AK110: 108 | AL110: Jakar
S111: 1 | AG111: 1.14 | AK111: 109 | AL111: Jakar
S112: 1 | AG112: 1.15 | AK112: 110 | AL112: Jakar
S113: 1 | AG113: 1.16 | AK113: 111 | AL113: Jakar
S114: 1 | AG114: 1.17 | AK114: 112 | AL114: Jakar
S115: 1 | AG115: 1.18 | AK115: 113 | AL115: Jakar
S116: 1 | AG116: 1.19 | AK116: 114 | AL116: Jakar
S117: 1 | AG117: 1.2 | AK117: 115 | AL117: Jakar
S118: 1 | AG118: 1.21 | AK118: 116 | AL118: Jakar
S119: 1 | AG119: 1.22 | AK119: 117 | AL119: Jakar
S120: 1 | AG120: 1.23 | AK120: 118 | AL120: Jakar
S121: 1 | AG121: 1.24 | AK121: 119 | AL121: Jakar
S122: 1 | AG122: 1.25 | AK122: 120 | AL122: Jakar
S123: 1 | AG123: 1.26 | AK123: 121 | AL123: Jakar
S124: 1 | AG124: 1.27 | AK124: 122 | AL124: Jakar
S125: 1 | AG125: 1.28 | AK125: 123 | AL125: Jakar
S126: 1 | AG126: 1.29 | AK126: 124 | AL126: Jakar
S127: 1 | AG127: 1.3 | AK127: 125 | AL127: Jakar
S128: 1 | AG128: 1.31 | AK128: 126 | AL128: Jakar
S129: 1 | AG129: 1.32 | AK129: 127 | AL129: Jakar
S130: 1 | AG130: 1.33 | AK130: 128 | AL130: Jakar
S131: 1 | AG131: 1.34 | AK131: 129 | AL131: Jakar
A132: =IF(E132="","",IF(A132="",TODAY(),A132)) ->  | D132: =IF(B132="","",(C132-B132)) ->  | F132: =IFERROR(VLOOKUP(E132,$AK$3:$AM$317,2,FALSE),"") ->  | H132: =IFERROR(G132/D132/24,"") ->  | J132: =IFERROR(I132/D132/24,"") ->  | K132: =IFERROR(L132/D132/24,"") ->  | Q132: =IFERROR(ROUND(SUM(L132*P132),2),"") ->  | S132: 1 | AG132: 1.35 | AK132: 130 | AL132: Jakar
S133: 1 | AG133: 1.36 | AK133: 131 | AL133: Jakar
S134: 1 | AG134: 1.37 | AK134: 132 | AL134: Jakar
S135: 1 | AG135: 1.38 | AK135: 133 | AL135: Jakar
S136: 1 | AG136: 1.39 | AK136: 134 | AL136: Jakar
S137: 1 | AG137: 1.4 | AK137: 135 | AL137: Jakar
S138: 1 | AG138: 1.41 | AK138: 136 | AL138: Jakar
S139: 1 | AG139: 1.42 | AK139: 137 | AL139: Jakar
S140: 1 | AG140: 1.43 | AK140: 138 | AL140: Jakar
S141: 1 | AG141: 1.44 | AK141: 139 | AL141: Jakar
S142: 1 | AG142: 1.45 | AK142: 140 | AL142: Jakar
S143: 1 | AG143: 1.46 | AK143: 141 | AL143: Jakar
S144: 1 | AG144: 1.47 | AK144: 142 | AL144: Jakar
S145: 1 | AG145: 1.48 | AK145: 143 | AL145: Jakar
S146: 1 | AG146: 1.49 | AK146: 144 | AL146: Jakar
S147: 1 | AG147: 1.5 | AK147: 145 | AL147: Jakar
S148: 1 | AG148: 1.51 | AK148: 146 | AL148: Jakar
S149: 1 | AG149: 1.52 | AK149: 147 | AL149: Jakar
S150: 1 | AG150: 1.53 | AK150: 148 | AL150: Jakar
S151: 1 | AG151: 1.54 | AK151: 149 | AL151: Jakar
S152: 1 | AG152: 1.55 | AK152: 150 | AL152: Jakar
S153: 1 | AG153: 1.56 | AK153: 151 | AL153: Jakar
P154: =IFERROR(ROUND(SUM(1000/M154),2),"") ->  | S154: 1 | AG154: 1.57 | AK154: 152 | AL154: Jakar
S155: 1 | AG155: 1.58 | AK155: 153 | AL155: Jakar
S156: 1 | AG156: 1.59 | AK156: 154 | AL156: Jakar
S157: 1 | AG157: 1.6 | AK157: 155 | AL157: Jakar
S158: 1 | AG158: 1.61 | AK158: 156 | AL158: Jakar
S159: 1 | AG159: 1.62 | AK159: 157 | AL159: Jakar
S160: 1 | AG160: 1.63 | AK160: 158 | AL160: Jakar
S161: 1 | AG161: 1.64 | AK161: 159 | AL161: Jakar
S162: 1 | AG162: 1.65 | AK162: 160 | AL162: Jakar
S163: 1 | AG163: 1.66 | AK163: 161 | AL163: Jakar
S164: 1 | AG164: 1.67 | AK164: 162 | AL164: Jakar
S165: 1 | AG165: 1.68 | AK165: 163 | AL165: Jakar
S166: 1 | AG166: 1.69 | AK166: 164 | AL166: Jakar
S167: 1 | AG167: 1.7 | AK167: 165 | AL167: Jakar
S168: 1 | AG168: 1.71 | AK168: 166 | AL168: Jakar
S169: 1 | AG169: 1.72 | AK169: 167 | AL169: Jakar
S170: 1 | AG170: 1.73 | AK170: 168 | AL170: Jakar
S171: 1 | AG171: 1.74 | AK171: 169 | AL171: Jakar
S172: 1 | AG172: 1.75 | AK172: 170 | AL172: Jakar
S173: 1 | AG173: 1.76 | AK173: 171 | AL173: Jakar
S174: 1 | AG174: 1.77 | AK174: 172 | AL174: Jakar
S175: 1 | AG175: 1.78 | AK175: 173 | AL175: Jakar
S176: 1 | AG176: 1.79 | AK176: 174 | AL176: Jakar
S177: 1 | AG177: 1.8 | AK177: 175 | AL177: Jakar
S178: 1 | AG178: 1.81 | AK178: 176 | AL178: Jakar
S179: 1 | AG179: 1.82 | AK179: 177 | AL179: Jakar
S180: 1 | AG180: 1.83 | AK180: 178 | AL180: Jakar
S181: 1 | AG181: 1.84 | AK181: 179 | AL181: Jakar
S182: 1 | AG182: 1.85 | AK182: 180 | AL182: Jakar
S183: 1 | AG183: 1.86 | AK183: 181 | AL183: Jakar
S184: 1 | AG184: 1.87 | AK184: 182 | AL184: Jakar
S185: 1 | AG185: 1.88 | AK185: 183 | AL185: Jakar
S186: 1 | AG186: 1.89 | AK186: 184 | AL186: Jakar
S187: 1 | AG187: 1.9 | AK187: 185 | AL187: Jakar
S188: 1 | AG188: 1.91 | AK188: 186 | AL188: Jakar
S189: 1 | AG189: 1.92 | AK189: 187 | AL189: Jakar
S190: 1 | AG190: 1.93 | AK190: 188 | AL190: Jakar
S191: 1 | AG191: 1.94 | AK191: 189 | AL191: Jakar
S192: 1 | AG192: 1.95 | AK192: 190 | AL192: Jakar
S193: 1 | AG193: 1.96 | AK193: 191 | AL193: Jakar
S194: 1 | AG194: 1.97 | AK194: 192 | AL194: Jakar
S195: 1 | AG195: 1.98 | AK195: 193 | AL195: Jakar
A196: =IF(E196="","",IF(A196="",TODAY(),A196)) ->  | D196: =IF(B196="","",(C196-B196)) ->  | F196: =IFERROR(VLOOKUP(E196,$AK$3:$AM$317,2,FALSE),"") ->  | H196: =IFERROR(G196/D196/24,"") ->  | J196: =IFERROR(I196/D196/24,"") ->  | K196: =IFERROR(L196/D196/24,"") ->  | Q196: =IFERROR(ROUND(SUM(L196*P196),2),"") ->  | S196: 1 | AG196: 1.99 | AK196: 194 | AL196: Jakar
S197: 1 | AG197: 2 | AK197: 195 | AL197: Jakar
S198: 1 | AG198: 2.01 | AK198: 196 | AL198: Jakar
S199: 1 | AG199: 2.02 | AK199: 197 | AL199: Jakar
S200: 1 | AG200: 2.03 | AK200: 198 | AL200: Jakar
... 1801 more rows

Sheet Shift_2
B1: T | C1: T | E1: T | I1: T | L1: T | M1: T | N1: T | O1: T | R1: T | T1: T | U1: T | V1: T | W1: T
A2: Date | B2: Start Time | C2: End Time | D2: Total | E2: Machine No. | F2: Machine Name | G2: Capisty Power (Kgs / Shift ) | H2: Capisty Power Rate (KGS / 1 HRS) | I2: Minmum Power ( Kgs / Shift ) | J2: Minimum Power Rate (KGS / 1 HRS) | K2: Acual Production (KGS / 1 HRS) | L2: Production rate per Shift | M2: Gm/ML | N2: Size MM | O2: Drawing | P2: ML X KG. | Q2: ML.\ day | R2: Color | S2: Shift | T2: Name of the Employee | U2: Name of Supervisor | V2: OR No. | W2: Comment | AG2: 1 | AH2: Crosha COMEZ 2017 | AI2: 15 | AJ2: 0.05 | AK2: Black | AL2: منصور محمد منصور | AM2: محمد
A3: =IF(E3="","",IF(A3="",TODAY(),A3)) -> 2019-02-20 | B3: 09:00:00 | C3: 16:00:00 | D3: =IF(B3="","",(C3-B3)) -> 07:00:00 | E3: 1 | F3: =IFERROR(VLOOKUP(E3,AG2:AI316,2,FALSE),"") -> Crosha COMEZ 2017 | H3: =IFERROR(G3/D3/24,"") -> 0 | J3: =IFERROR(I3/D3/24,"") -> 0 | K3: =IFERROR(L3/D3/24,"") -> 1.714285714 | L3: 12 | M3: 3 | N3: 0.06 | O3: ttttt | P3: =IFERROR(ROUND(SUM(1000/M3),2),"") -> 333.33 | Q3: =IFERROR(ROUND(SUM(L3*P3),2),"") -> 3999.96 | R3: A prominent Black | S3: 2 | T3: عادل عزمي شنودة | U3: اسامة | V3: 3333 | W3: yyyyyy | AG3: 2 | AH3: Crosha COMEZ 2017 | AI3: 11.5 | AJ3: 0.06 | AK3: White | AL3: علي مراد حسن | AM3: محمود
A4: =IF(E4="","",IF(A4="",TODAY(),A4)) -> 2019-02-21 | B4: 18:30:00 | C4: 22:15:00 | D4: =IF(B4="","",(C4-B4)) -> 03:45:00 | E4: 2 | F4: =IFERROR(VLOOKUP(E4,AG3:AI317,2,FALSE),"") -> Crosha COMEZ 2017 | H4: =IFERROR(G4/D4/24,"") -> 0 | I4: 8 | J4: =IFERROR(I4/D4/24,"") -> 2.133333333 | K4: =IFERROR(L4/D4/24,"") -> 3.466666667 | L4: 13 | M4: 5 | N4: 0.07 | O4: mmmmm | P4: =IFERROR(ROUND(SUM(1000/M4),2),"") -> 200 | Q4: =IFERROR(ROUND(SUM(L4*P4),2),"") -> 2600 | R4: White | S4: 2 | T4: صبحي محمد محمود | U4: اسامة | V4: 99999 | AG4: 3 | AH4: Crosha F.COLLIC 1996 | AI4: 9 | AJ4: 0.07 | AK4: Black&White | AL4: ابراهيم محمود ابراهيم | AM4: اسامة
S5: 2 | AG5: 4 | AH5: Crosha F.COLLIC 1997 | AI5: 8.1 | AJ5: 0.08 | AK5: A prominent Black | AL5: مسعد رمزي مسعد
S6: 2 | AG6: 5 | AH6: Crosha F.COLLIC 1996 | AI6: 7.8 | AJ6: 0.09 | AK6: A prominent White | AL6: عادل عزمي شنودة
S7: 2 | AG7: 6 | AH7: Crosha | AJ7: 0.1 | AL7: صبحي محمد محمود
S8: 2 | AG8: 7 | AH8: Crosha | AJ8: 0.11 | AL8: السيد محمد عبد العال
S9: 2 | AG9: 8 | AH9: Crosha | AJ9: 0.12 | AL9: عادل سيف الله السيد
S10: 2 | AG10: 9 | AH10: Crosha | AJ10: 0.13 | AL10: خالد السيد عبد القادر
S11: 2 | AG11: 10 | AH11: Crosha | AJ11: 0.14 | AL11: عادل صادق بشير
S12: 2 | AG12: 11 | AH12: Crosha | AJ12: 0.15 | AL12: روماني عطية حبشي
S13: 2 | AG13: 12 | AH13: Crosha | AJ13: 0.16 | AL13: احمد صادق توفيق
S14: 2 | AG14: 13 | AH14: Crosha | AJ14: 0.17 | AL14: دينا مجدي ابراهيم
S15: 2 | AG15: 14 | AH15: Crosha | AJ15: 0.18 | AL15: علي فرج على محمد
S16: 2 | AG16: 15 | AH16: Crosha | AJ16: 0.19 | AL16: بوسي السيد عبد المنعم
S17: 2 | AG17: 16 | AH17: Crosha | AJ17: 0.2 | AL17: محمد محمد عبد الوهاب
S18: 2 | AG18: 17 | AH18: Crosha | AJ18: 0.21 | AL18: سعيد الليثي جاب الله
S19: 2 | AG19: 18 | AH19: Crosha | AJ19: 0.22 | AL19: احمد عبد الظاهر
S20: 2 | AG20: 19 | AH20: Crosha | AJ20: 0.23 | AL20: مصطفى عبد النبي مصطفى
S21: 2 | AG21: 20 | AH21: Crosha | AJ21: 0.24 | AL21: ابراهيم صبحي محمد السيد
S22: 2 | AG22: 21 | AH22: Crosha | AJ22: 0.25 | AL22: خميس حسن حسنين
S23: 2 | AG23: 22 | AH23: Crosha | AJ23: 0.26 | AL23: محمد حسني حسن
S24: 2 | AG24: 23 | AH24: Crosha | AJ24: 0.27 | AL24: محمد عادل محمد محمد
S25: 2 | AG25: 24 | AH25: Crosha | AJ25: 0.28 | AL25: السيد عبد الحميد اسماعيل
P26: =IFERROR(ROUND(SUM(1000/M26),2),"") ->  | S26: 2 | AG26: 25 | AH26: Crosha | AJ26: 0.29 | AL26: ابراهيم محمد فتوح
S27: 2 | AG27: 26 | AH27: Crosha | AJ27: 0.3 | AL27: عمرو محمد عبد الجليل
S28: 2 | AG28: 27 | AH28: Crosha | AJ28: 0.31 | AL28: خالد مصطفى العوضي
S29: 2 | AG29: 28 | AH29: Crosha | AJ29: 0.32 | AL29: حمادة احمد على النجار
S30: 2 | AG30: 29 | AH30: Crosha | AJ30: 0.33 | AL30: عاطف وليم لبيب
S31: 2 | AG31: 30 | AH31: Crosha | AJ31: 0.34 | AL31: عادل وليم نبيل
S32: 2 | AG32: 31 | AH32: Crosha | AJ32: 0.35 | AL32: بيشوي عزت شفيق
S33: 2 | AG33: 32 | AH33: Crosha | AJ33: 0.36 | AL33: محمد يحيى محمود
S34: 2 | AG34: 33 | AH34: Crosha | AJ34: 0.37 | AL34: احمد رمضان احمد
S35: 2 | AG35: 34 | AH35: Crosha | AJ35: 0.38
S36: 2 | AG36: 35 | AH36: Crosha | AJ36: 0.39
S37: 2 | AG37: 36 | AH37: Crosha | AJ37: 0.4
S38: 2 | AG38: 37 | AH38: Crosha | AJ38: 0.41
S39: 2 | AG39: 38 | AH39: Crosha | AJ39: 0.42
S40: 2 | AG40: 39 | AH40: Crosha | AJ40: 0.43
S41: 2 | AG41: 40 | AH41: Crosha | AJ41: 0.44
S42: 2 | AG42: 41 | AH42: Crosha | AJ42: 0.45
S43: 2 | AG43: 42 | AH43: Crosha | AJ43: 0.46
S44: 2 | AG44: 43 | AH44: Crosha | AJ44: 0.47
S45: 2 | AG45: 44 | AH45: Crosha | AJ45: 0.48
S46: 2 | AG46: 45 | AH46: Crosha | AJ46: 0.49
S47: 2 | AG47: 46 | AH47: Crosha | AJ47: 0.5
S48: 2 | AG48: 47 | AH48: Crosha | AJ48: 0.51
S49: 2 | AG49: 48 | AH49: Crosha | AJ49: 0.52
S50: 2 | AG50: 49 | AH50: Crosha | AJ50: 0.53
S51: 2 | AG51: 50 | AH51: Crosha | AJ51: 0.54
S52: 2 | AG52: 51 | AH52: Crosha | AJ52: 0.55
S53: 2 | AG53: 52 | AH53: Crosha | AJ53: 0.56
S54: 2 | AG54: 53 | AH54: Crosha | AJ54: 0.57
S55: 2 | AG55: 54 | AH55: Crosha | AJ55: 0.58
S56: 2 | AG56: 55 | AH56: Crosha | AJ56: 0.59
S57: 2 | AG57: 56 | AH57: Crosha | AJ57: 0.6
S58: 2 | AG58: 57 | AH58: Crosha | AJ58: 0.61
S59: 2 | AG59: 58 | AH59: Crosha | AJ59: 0.62
S60: 2 | AG60: 59 | AH60: Crosha | AJ60: 0.63
S61: 2 | AG61: 60 | AH61: Crosha | AJ61: 0.64
S62: 2 | AG62: 61 | AH62: Crosha | AJ62: 0.65
S63: 2 | AG63: 62 | AH63: Crosha | AJ63: 0.66
S64: 2 | AG64: 63 | AH64: Crosha | AJ64: 0.67
S65: 2 | AG65: 64 | AH65: Crosha | AJ65: 0.68
S66: 2 | AG66: 65 | AH66: Crosha | AJ66: 0.69
S67: 2 | AG67: 66 | AH67: Crosha | AJ67: 0.7
A68: =IF(E68="","",IF(A68="",TODAY(),A68)) ->  | D68: =IF(B68="","",(C68-B68)) ->  | F68: =IFERROR(VLOOKUP(E68,AG67:AI381,2,FALSE),"") ->  | H68: =IFERROR(G68/D68/24,"") ->  | J68: =IFERROR(I68/D68/24,"") ->  | K68: =IFERROR(L68/D68/24,"") ->  | Q68: =IFERROR(ROUND(SUM(L68*P68),2),"") ->  | S68: 2 | AG68: 67 | AH68: Crosha | AJ68: 0.71
S69: 2 | AG69: 68 | AH69: Crosha | AJ69: 0.72
S70: 2 | AG70: 69 | AH70: Crosha | AJ70: 0.73
S71: 2 | AG71: 70 | AH71: Crosha | AJ71: 0.74
S72: 2 | AG72: 71 | AH72: Crosha | AJ72: 0.75
S73: 2 | AG73: 72 | AH73: Crosha | AJ73: 0.76
S74: 2 | AG74: 73 | AH74: Crosha | AJ74: 0.77
S75: 2 | AG75: 74 | AH75: Crosha | AJ75: 0.78
S76: 2 | AG76: 75 | AH76: Crosha | AJ76: 0.79
S77: 2 | AG77: 76 | AH77: Crosha | AJ77: 0.8
S78: 2 | AG78: 77 | AH78: Crosha | AJ78: 0.81
S79: 2 | AG79: 78 | AH79: Crosha | AJ79: 0.82
S80: 2 | AG80: 79 | AH80: Crosha | AJ80: 0.83
S81: 2 | AG81: 80 | AH81: Crosha | AJ81: 0.84
S82: 2 | AG82: 81 | AH82: Crosha | AJ82: 0.85
S83: 2 | AG83: 82 | AH83: Crosha | AJ83: 0.86
S84: 2 | AG84: 83 | AH84: Crosha | AJ84: 0.87
S85: 2 | AG85: 84 | AH85: Crosha | AJ85: 0.88
S86: 2 | AG86: 85 | AH86: Crosha | AJ86: 0.89
S87: 2 | AG87: 86 | AH87: Crosha | AJ87: 0.9
S88: 2 | AG88: 87 | AH88: Crosha | AJ88: 0.91
S89: 2 | AG89: 88 | AH89: Crosha | AJ89: 0.92
P90: =IFERROR(ROUND(SUM(1000/M90),2),"") ->  | S90: 2 | AG90: 89 | AH90: Crosha | AJ90: 0.93
S91: 2 | AG91: 90 | AH91: Crosha | AJ91: 0.94
S92: 2 | AG92: 91 | AH92: Crosha | AJ92: 0.95
S93: 2 | AG93: 92 | AH93: Crosha | AJ93: 0.96
S94: 2 | AG94: 93 | AH94: Crosha | AJ94: 0.97
S95: 2 | AG95: 94 | AH95: Crosha | AJ95: 0.98
S96: 2 | AG96: 95 | AH96: Crosha | AJ96: 0.99
S97: 2 | AG97: 96 | AH97: Crosha | AJ97: 1
S98: 2 | AG98: 97 | AH98: Crosha | AJ98: 1.01
S99: 2 | AG99: 98 | AH99: Crosha | AJ99: 1.02
S100: 2 | AG100: 99 | AH100: Crosha | AJ100: 1.03
S101: 2 | AG101: 100 | AH101: Crosha | AJ101: 1.04
S102: 2 | AG102: 101 | AH102: Jakar - MULLER 2017 | AI102: 3.35 | AJ102: 1.05
S103: 2 | AG103: 102 | AH103: Jakar - MULLER 2017 | AI103: 5.01 | AJ103: 1.06
S104: 2 | AG104: 103 | AH104: Jakar | AJ104: 1.07
S105: 2 | AG105: 104 | AH105: Jakar | AJ105: 1.08
S106: 2 | AG106: 105 | AH106: Jakar | AJ106: 1.09
S107: 2 | AG107: 106 | AH107: Jakar | AJ107: 1.1
S108: 2 | AG108: 107 | AH108: Jakar | AJ108: 1.11
S109: 2 | AG109: 108 | AH109: Jakar | AJ109: 1.12
S110: 2 | AG110: 109 | AH110: Jakar | AJ110: 1.13
S111: 2 | AG111: 110 | AH111: Jakar | AJ111: 1.14
S112: 2 | AG112: 111 | AH112: Jakar | AJ112: 1.15
S113: 2 | AG113: 112 | AH113: Jakar | AJ113: 1.16
S114: 2 | AG114: 113 | AH114: Jakar | AJ114: 1.17
S115: 2 | AG115: 114 | AH115: Jakar | AJ115: 1.18
S116: 2 | AG116: 115 | AH116: Jakar | AJ116: 1.19
S117: 2 | AG117: 116 | AH117: Jakar | AJ117: 1.2
S118: 2 | AG118: 117 | AH118: Jakar | AJ118: 1.21
S119: 2 | AG119: 118 | AH119: Jakar | AJ119: 1.22
S120: 2 | AG120: 119 | AH120: Jakar | AJ120: 1.23
S121: 2 | AG121: 120 | AH121: Jakar | AJ121: 1.24
S122: 2 | AG122: 121 | AH122: Jakar | AJ122: 1.25
S123: 2 | AG123: 122 | AH123: Jakar | AJ123: 1.26
S124: 2 | AG124: 123 | AH124: Jakar | AJ124: 1.27
S125: 2 | AG125: 124 | AH125: Jakar | AJ125: 1.28
S126: 2 | AG126: 125 | AH126: Jakar | AJ126: 1.29
S127: 2 | AG127: 126 | AH127: Jakar | AJ127: 1.3
S128: 2 | AG128: 127 | AH128: Jakar | AJ128: 1.31
S129: 2 | AG129: 128 | AH129: Jakar | AJ129: 1.32
S130: 2 | AG130: 129 | AH130: Jakar | AJ130: 1.33
S131: 2 | AG131: 130 | AH131: Jakar | AJ131: 1.34
A132: =IF(E132="","",IF(A132="",TODAY(),A132)) ->  | D132: =IF(B132="","",(C132-B132)) ->  | F132: =IFERROR(VLOOKUP(E132,AG131:AI445,2,FALSE),"") ->  | H132: =IFERROR(G132/D132/24,"") ->  | J132: =IFERROR(I132/D132/24,"") ->  | K132: =IFERROR(L132/D132/24,"") ->  | Q132: =IFERROR(ROUND(SUM(L132*P132),2),"") ->  | S132: 2 | AG132: 131 | AH132: Jakar | AJ132: 1.35
S133: 2 | AG133: 132 | AH133: Jakar | AJ133: 1.36
S134: 2 | AG134: 133 | AH134: Jakar | AJ134: 1.37
S135: 2 | AG135: 134 | AH135: Jakar | AJ135: 1.38
S136: 2 | AG136: 135 | AH136: Jakar | AJ136: 1.39
S137: 2 | AG137: 136 | AH137: Jakar | AJ137: 1.4
S138: 2 | AG138: 137 | AH138: Jakar | AJ138: 1.41
S139: 2 | AG139: 138 | AH139: Jakar | AJ139: 1.42
S140: 2 | AG140: 139 | AH140: Jakar | AJ140: 1.43
S141: 2 | AG141: 140 | AH141: Jakar | AJ141: 1.44
S142: 2 | AG142: 141 | AH142: Jakar | AJ142: 1.45
S143: 2 | AG143: 142 | AH143: Jakar | AJ143: 1.46
S144: 2 | AG144: 143 | AH144: Jakar | AJ144: 1.47
S145: 2 | AG145: 144 | AH145: Jakar | AJ145: 1.48
S146: 2 | AG146: 145 | AH146: Jakar | AJ146: 1.49
S147: 2 | AG147: 146 | AH147: Jakar | AJ147: 1.5
S148: 2 | AG148: 147 | AH148: Jakar | AJ148: 1.51
S149: 2 | AG149: 148 | AH149: Jakar | AJ149: 1.52
S150: 2 | AG150: 149 | AH150: Jakar | AJ150: 1.53
S151: 2 | AG151: 150 | AH151: Jakar | AJ151: 1.54
S152: 2 | AG152: 151 | AH152: Jakar | AJ152: 1.55
S153: 2 | AG153: 152 | AH153: Jakar | AJ153: 1.56
P154: =IFERROR(ROUND(SUM(1000/M154),2),"") ->  | S154: 2 | AG154: 153 | AH154: Jakar | AJ154: 1.57
S155: 2 | AG155: 154 | AH155: Jakar | AJ155: 1.58
S156: 2 | AG156: 155 | AH156: Jakar | AJ156: 1.59
S157: 2 | AG157: 156 | AH157: Jakar | AJ157: 1.6
S158: 2 | AG158: 157 | AH158: Jakar | AJ158: 1.61
S159: 2 | AG159: 158 | AH159: Jakar | AJ159: 1.62
S160: 2 | AG160: 159 | AH160: Jakar | AJ160: 1.63
S161: 2 | AG161: 160 | AH161: Jakar | AJ161: 1.64
S162: 2 | AG162: 161 | AH162: Jakar | AJ162: 1.65
S163: 2 | AG163: 162 | AH163: Jakar | AJ163: 1.66
S164: 2 | AG164: 163 | AH164: Jakar | AJ164: 1.67
S165: 2 | AG165: 164 | AH165: Jakar | AJ165: 1.68
S166: 2 | AG166: 165 | AH166: Jakar | AJ166: 1.69
S167: 2 | AG167: 166 | AH167: Jakar | AJ167: 1.7
S168: 2 | AG168: 167 | AH168: Jakar | AJ168: 1.71
S169: 2 | AG169: 168 | AH169: Jakar | AJ169: 1.72
S170: 2 | AG170: 169 | AH170: Jakar | AJ170: 1.73
S171: 2 | AG171: 170 | AH171: Jakar | AJ171: 1.74
S172: 2 | AG172: 171 | AH172: Jakar | AJ172: 1.75
S173: 2 | AG173: 172 | AH173: Jakar | AJ173: 1.76
S174: 2 | AG174: 173 | AH174: Jakar | AJ174: 1.77
S175: 2 | AG175: 174 | AH175: Jakar | AJ175: 1.78
S176: 2 | AG176: 175 | AH176: Jakar | AJ176: 1.79
S177: 2 | AG177: 176 | AH177: Jakar | AJ177: 1.8
S178: 2 | AG178: 177 | AH178: Jakar | AJ178: 1.81
S179: 2 | AG179: 178 | AH179: Jakar | AJ179: 1.82
S180: 2 | AG180: 179 | AH180: Jakar | AJ180: 1.83
S181: 2 | AG181: 180 | AH181: Jakar | AJ181: 1.84
S182: 2 | AG182: 181 | AH182: Jakar | AJ182: 1.85
S183: 2 | AG183: 182 | AH183: Jakar | AJ183: 1.86
S184: 2 | AG184: 183 | AH184: Jakar | AJ184: 1.87
S185: 2 | AG185: 184 | AH185: Jakar | AJ185: 1.88
S186: 2 | AG186: 185 | AH186: Jakar | AJ186: 1.89
S187: 2 | AG187: 186 | AH187: Jakar | AJ187: 1.9
S188: 2 | AG188: 187 | AH188: Jakar | AJ188: 1.91
S189: 2 | AG189: 188 | AH189: Jakar | AJ189: 1.92
S190: 2 | AG190: 189 | AH190: Jakar | AJ190: 1.93
S191: 2 | AG191: 190 | AH191: Jakar | AJ191: 1.94
S192: 2 | AG192: 191 | AH192: Jakar | AJ192: 1.95
S193: 2 | AG193: 192 | AH193: Jakar | AJ193: 1.96
S194: 2 | AG194: 193 | AH194: Jakar | AJ194: 1.97
S195: 2 | AG195: 194 | AH195: Jakar | AJ195: 1.98
A196: =IF(E196="","",IF(A196="",TODAY(),A196)) ->  | D196: =IF(B196="","",(C196-B196)) ->  | F196: =IFERROR(VLOOKUP(E196,AG195:AI509,2,FALSE),"") ->  | H196: =IFERROR(G196/D196/24,"") ->  | J196: =IFERROR(I196/D196/24,"") ->  | K196: =IFERROR(L196/D196/24,"") ->  | Q196: =IFERROR(ROUND(SUM(L196*P196),2),"") ->  | S196: 2 | AG196: 195 | AH196: Jakar | AJ196: 1.99
S197: 2 | AG197: 196 | AH197: Jakar | AJ197: 2
S198: 2 | AG198: 197 | AH198: Jakar | AJ198: 2.01
S199: 2 | AG199: 198 | AH199: Jakar | AJ199: 2.02
S200: 2 | AG200: 199 | AH200: Jakar | AJ200: 2.03
... 1801 more rows

Sheet Shift_3
B1: T | C1: T | E1: T | I1: T | L1: T | M1: T | N1: T | O1: T | R1: T | T1: T | U1: T | V1: T | W1: T
A2: Date | B2: Start Time | C2: End Time | D2: Total | E2: Machine No. | F2: Machine Name | G2: Capisty Power (Kgs / Shift ) | H2: Capisty Power Rate (KGS / 1 HRS) | I2: Minmum Power ( Kgs / Shift ) | J2: Minimum Power Rate (KGS / 1 HRS) | K2: Acual Production (KGS / 1 HRS) | L2: Production rate per Shift | M2: Gm/ML | N2: Size MM | O2: Drawing | P2: ML X KG. | Q2: ML.\ day | R2: Color | S2: Shift | T2: Name of the Employee | U2: Name of Supervisor | V2: OR No. | W2: Comment | AJ2: 1 | AK2: Crosha COMEZ 2017 | AL2: 20 | AM2: 0.05 | AN2: Black | AO2: منصور محمد منصور | AP2: محمد
A3: =IF(E3="","",IF(A3="",TODAY(),A3)) -> 2019-02-20 | B3: 09:00:00 | C3: 16:00:00 | D3: =IF(B3="","",(C3-B3)) -> 07:00:00 | E3: 1 | F3: =IFERROR(VLOOKUP(E3,$AJ$2:$AL$316,2,FALSE),"") -> Crosha COMEZ 2017 | H3: =IFERROR(G3/D3/24,"") -> 0 | I3: 8 | J3: =IFERROR(I3/D3/24,"") -> 1.142857143 | K3: =IFERROR(L3/D3/24,"") -> 1.714285714 | L3: 12 | M3: 3 | N3: 0.06 | O3: ttttt | P3: =IFERROR(ROUND(SUM(1000/M3),2),"") -> 333.33 | Q3: =IFERROR(ROUND(SUM(L3*P3),2),"") -> 3999.96 | R3: White | S3: 3 | T3: خالد السيد عبد القادر | U3: اسامة | V3: 3333 | W3: yyyyyy | AJ3: 2 | AK3: Crosha COMEZ 2017 | AL3: 15.2 | AM3: 0.06 | AN3: White | AO3: علي مراد حسن | AP3: محمود
A4: =IF(E4="","",IF(A4="",TODAY(),A4)) -> 2019-02-21 | B4: 01:00:00 | C4: 07:00:00 | D4: =IF(B4="","",(C4-B4)) -> 06:00:00 | E4: 2 | F4: =IFERROR(VLOOKUP(E4,$AJ$2:$AL$316,2,FALSE),"") -> Crosha COMEZ 2017 | H4: =IFERROR(G4/D4/24,"") -> 0 | I4: 10 | J4: =IFERROR(I4/D4/24,"") -> 1.666666667 | K4: =IFERROR(L4/D4/24,"") -> 2.666666667 | L4: 16 | M4: 3 | N4: 0.06 | O4: ooooo | P4: =IFERROR(ROUND(SUM(1000/M4),2),"") -> 333.33 | Q4: =IFERROR(ROUND(SUM(L4*P4),2),"") -> 5333.28 | R4: A prominent Black | S4: 3 | T4: عادل سيف الله السيد | U4: محمود | V4: 66666 | W4: ll | AJ4: 3 | AK4: Crosha F.COLLIC 1996 | AL4: 12 | AM4: 0.07 | AN4: Black&White | AO4: ابراهيم محمود ابراهيم | AP4: اسامة
Q5: =IFERROR(ROUND(SUM(L5*P5),2),"") ->  | S5: 3 | AJ5: 4 | AK5: Crosha F.COLLIC 1997 | AL5: 10.8 | AM5: 0.08 | AN5: A prominent Black | AO5: مسعد رمزي مسعد
S6: 3 | AJ6: 5 | AK6: Crosha F.COLLIC 1996 | AL6: 10.4 | AM6: 0.09 | AN6: A prominent White | AO6: عادل عزمي شنودة
S7: 3 | AJ7: 6 | AK7: Crosha | AM7: 0.1 | AO7: صبحي محمد محمود
S8: 3 | AJ8: 7 | AK8: Crosha | AM8: 0.11 | AO8: السيد محمد عبد العال
S9: 3 | AJ9: 8 | AK9: Crosha | AM9: 0.12 | AO9: عادل سيف الله السيد
S10: 3 | AJ10: 9 | AK10: Crosha | AM10: 0.13 | AO10: خالد السيد عبد القادر
S11: 3 | AJ11: 10 | AK11: Crosha | AM11: 0.14 | AO11: عادل صادق بشير
S12: 3 | AJ12: 11 | AK12: Crosha | AM12: 0.15 | AO12: روماني عطية حبشي
S13: 3 | AJ13: 12 | AK13: Crosha | AM13: 0.16 | AO13: احمد صادق توفيق
S14: 3 | AJ14: 13 | AK14: Crosha | AM14: 0.17 | AO14: دينا مجدي ابراهيم
S15: 3 | AJ15: 14 | AK15: Crosha | AM15: 0.18 | AO15: علي فرج على محمد
S16: 3 | AJ16: 15 | AK16: Crosha | AM16: 0.19 | AO16: بوسي السيد عبد المنعم
S17: 3 | AJ17: 16 | AK17: Crosha | AM17: 0.2 | AO17: محمد محمد عبد الوهاب
S18: 3 | AJ18: 17 | AK18: Crosha | AM18: 0.21 | AO18: سعيد الليثي جاب الله
S19: 3 | AJ19: 18 | AK19: Crosha | AM19: 0.22 | AO19: احمد عبد الظاهر
S20: 3 | AJ20: 19 | AK20: Crosha | AM20: 0.23 | AO20: مصطفى عبد النبي مصطفى
S21: 3 | AJ21: 20 | AK21: Crosha | AM21: 0.24 | AO21: ابراهيم صبحي محمد السيد
S22: 3 | AJ22: 21 | AK22: Crosha | AM22: 0.25 | AO22: خميس حسن حسنين
S23: 3 | AJ23: 22 | AK23: Crosha | AM23: 0.26 | AO23: محمد حسني حسن
S24: 3 | AJ24: 23 | AK24: Crosha | AM24: 0.27 | AO24: محمد عادل محمد محمد
S25: 3 | AJ25: 24 | AK25: Crosha | AM25: 0.28 | AO25: السيد عبد الحميد اسماعيل
P26: =IFERROR(ROUND(SUM(1000/M26),2),"") ->  | S26: 3 | AJ26: 25 | AK26: Crosha | AM26: 0.29 | AO26: ابراهيم محمد فتوح
S27: 3 | AJ27: 26 | AK27: Crosha | AM27: 0.3 | AO27: عمرو محمد عبد الجليل
S28: 3 | AJ28: 27 | AK28: Crosha | AM28: 0.31 | AO28: خالد مصطفى العوضي
S29: 3 | AJ29: 28 | AK29: Crosha | AM29: 0.32 | AO29: حمادة احمد على النجار
S30: 3 | AJ30: 29 | AK30: Crosha | AM30: 0.33 | AO30: عاطف وليم لبيب
S31: 3 | AJ31: 30 | AK31: Crosha | AM31: 0.34 | AO31: عادل وليم نبيل
S32: 3 | AJ32: 31 | AK32: Crosha | AM32: 0.35 | AO32: بيشوي عزت شفيق
S33: 3 | AJ33: 32 | AK33: Crosha | AM33: 0.36 | AO33: محمد يحيى محمود
S34: 3 | AJ34: 33 | AK34: Crosha | AM34: 0.37 | AO34: احمد رمضان احمد
S35: 3 | AJ35: 34 | AK35: Crosha | AM35: 0.38
S36: 3 | AJ36: 35 | AK36: Crosha | AM36: 0.39
S37: 3 | AJ37: 36 | AK37: Crosha | AM37: 0.4
S38: 3 | AJ38: 37 | AK38: Crosha | AM38: 0.41
S39: 3 | AJ39: 38 | AK39: Crosha | AM39: 0.42
S40: 3 | AJ40: 39 | AK40: Crosha | AM40: 0.43
S41: 3 | AJ41: 40 | AK41: Crosha | AM41: 0.44
S42: 3 | AJ42: 41 | AK42: Crosha | AM42: 0.45
S43: 3 | AJ43: 42 | AK43: Crosha | AM43: 0.46
S44: 3 | AJ44: 43 | AK44: Crosha | AM44: 0.47
S45: 3 | AJ45: 44 | AK45: Crosha | AM45: 0.48
S46: 3 | AJ46: 45 | AK46: Crosha | AM46: 0.49
S47: 3 | AJ47: 46 | AK47: Crosha | AM47: 0.5
S48: 3 | AJ48: 47 | AK48: Crosha | AM48: 0.51
S49: 3 | AJ49: 48 | AK49: Crosha | AM49: 0.52
S50: 3 | AJ50: 49 | AK50: Crosha | AM50: 0.53
S51: 3 | AJ51: 50 | AK51: Crosha | AM51: 0.54
S52: 3 | AJ52: 51 | AK52: Crosha | AM52: 0.55
S53: 3 | AJ53: 52 | AK53: Crosha | AM53: 0.56
S54: 3 | AJ54: 53 | AK54: Crosha | AM54: 0.57
S55: 3 | AJ55: 54 | AK55: Crosha | AM55: 0.58
S56: 3 | AJ56: 55 | AK56: Crosha | AM56: 0.59
S57: 3 | AJ57: 56 | AK57: Crosha | AM57: 0.6
S58: 3 | AJ58: 57 | AK58: Crosha | AM58: 0.61
S59: 3 | AJ59: 58 | AK59: Crosha | AM59: 0.62
S60: 3 | AJ60: 59 | AK60: Crosha | AM60: 0.63
S61: 3 | AJ61: 60 | AK61: Crosha | AM61: 0.64
S62: 3 | AJ62: 61 | AK62: Crosha | AM62: 0.65
S63: 3 | AJ63: 62 | AK63: Crosha | AM63: 0.66
S64: 3 | AJ64: 63 | AK64: Crosha | AM64: 0.67
S65: 3 | AJ65: 64 | AK65: Crosha | AM65: 0.68
S66: 3 | AJ66: 65 | AK66: Crosha | AM66: 0.69
S67: 3 | AJ67: 66 | AK67: Crosha | AM67: 0.7
A68: =IF(E68="","",IF(A68="",TODAY(),A68)) ->  | D68: =IF(B68="","",(C68-B68)) ->  | F68: =IFERROR(VLOOKUP(E68,$AJ$2:$AL$316,2,FALSE),"") ->  | H68: =IFERROR(G68/D68/24,"") ->  | J68: =IFERROR(I68/D68/24,"") ->  | K68: =IFERROR(L68/D68/24,"") ->  | S68: 3 | AJ68: 67 | AK68: Crosha | AM68: 0.71
Q69: =IFERROR(ROUND(SUM(L69*P69),2),"") ->  | S69: 3 | AJ69: 68 | AK69: Crosha | AM69: 0.72
S70: 3 | AJ70: 69 | AK70: Crosha | AM70: 0.73
S71: 3 | AJ71: 70 | AK71: Crosha | AM71: 0.74
S72: 3 | AJ72: 71 | AK72: Crosha | AM72: 0.75
S73: 3 | AJ73: 72 | AK73: Crosha | AM73: 0.76
S74: 3 | AJ74: 73 | AK74: Crosha | AM74: 0.77
S75: 3 | AJ75: 74 | AK75: Crosha | AM75: 0.78
S76: 3 | AJ76: 75 | AK76: Crosha | AM76: 0.79
S77: 3 | AJ77: 76 | AK77: Crosha | AM77: 0.8
S78: 3 | AJ78: 77 | AK78: Crosha | AM78: 0.81
S79: 3 | AJ79: 78 | AK79: Crosha | AM79: 0.82
S80: 3 | AJ80: 79 | AK80: Crosha | AM80: 0.83
S81: 3 | AJ81: 80 | AK81: Crosha | AM81: 0.84
S82: 3 | AJ82: 81 | AK82: Crosha | AM82: 0.85
S83: 3 | AJ83: 82 | AK83: Crosha | AM83: 0.86
S84: 3 | AJ84: 83 | AK84: Crosha | AM84: 0.87
S85: 3 | AJ85: 84 | AK85: Crosha | AM85: 0.88
S86: 3 | AJ86: 85 | AK86: Crosha | AM86: 0.89
S87: 3 | AJ87: 86 | AK87: Crosha | AM87: 0.9
S88: 3 | AJ88: 87 | AK88: Crosha | AM88: 0.91
S89: 3 | AJ89: 88 | AK89: Crosha | AM89: 0.92
P90: =IFERROR(ROUND(SUM(1000/M90),2),"") ->  | S90: 3 | AJ90: 89 | AK90: Crosha | AM90: 0.93
S91: 3 | AJ91: 90 | AK91: Crosha | AM91: 0.94
S92: 3 | AJ92: 91 | AK92: Crosha | AM92: 0.95
S93: 3 | AJ93: 92 | AK93: Crosha | AM93: 0.96
S94: 3 | AJ94: 93 | AK94: Crosha | AM94: 0.97
S95: 3 | AJ95: 94 | AK95: Crosha | AM95: 0.98
S96: 3 | AJ96: 95 | AK96: Crosha | AM96: 0.99
S97: 3 | AJ97: 96 | AK97: Crosha | AM97: 1
S98: 3 | AJ98: 97 | AK98: Crosha | AM98: 1.01
S99: 3 | AJ99: 98 | AK99: Crosha | AM99: 1.02
S100: 3 | AJ100: 99 | AK100: Crosha | AM100: 1.03
S101: 3 | AJ101: 100 | AK101: Crosha | AM101: 1.04
S102: 3 | AJ102: 101 | AK102: Jakar - MULLER 2017 | AL102: 4.46 | AM102: 1.05
S103: 3 | AJ103: 102 | AK103: Jakar - MULLER 2017 | AL103: 6.78 | AM103: 1.06
S104: 3 | AJ104: 103 | AK104: Jakar | AM104: 1.07
S105: 3 | AJ105: 104 | AK105: Jakar | AM105: 1.08
S106: 3 | AJ106: 105 | AK106: Jakar | AM106: 1.09
S107: 3 | AJ107: 106 | AK107: Jakar | AM107: 1.1
S108: 3 | AJ108: 107 | AK108: Jakar | AM108: 1.11
S109: 3 | AJ109: 108 | AK109: Jakar | AM109: 1.12
S110: 3 | AJ110: 109 | AK110: Jakar | AM110: 1.13
S111: 3 | AJ111: 110 | AK111: Jakar | AM111: 1.14
S112: 3 | AJ112: 111 | AK112: Jakar | AM112: 1.15
S113: 3 | AJ113: 112 | AK113: Jakar | AM113: 1.16
S114: 3 | AJ114: 113 | AK114: Jakar | AM114: 1.17
S115: 3 | AJ115: 114 | AK115: Jakar | AM115: 1.18
S116: 3 | AJ116: 115 | AK116: Jakar | AM116: 1.19
S117: 3 | AJ117: 116 | AK117: Jakar | AM117: 1.2
S118: 3 | AJ118: 117 | AK118: Jakar | AM118: 1.21
S119: 3 | AJ119: 118 | AK119: Jakar | AM119: 1.22
S120: 3 | AJ120: 119 | AK120: Jakar | AM120: 1.23
S121: 3 | AJ121: 120 | AK121: Jakar | AM121: 1.24
S122: 3 | AJ122: 121 | AK122: Jakar | AM122: 1.25
S123: 3 | AJ123: 122 | AK123: Jakar | AM123: 1.26
S124: 3 | AJ124: 123 | AK124: Jakar | AM124: 1.27
S125: 3 | AJ125: 124 | AK125: Jakar | AM125: 1.28
S126: 3 | AJ126: 125 | AK126: Jakar | AM126: 1.29
S127: 3 | AJ127: 126 | AK127: Jakar | AM127: 1.3
S128: 3 | AJ128: 127 | AK128: Jakar | AM128: 1.31
S129: 3 | AJ129: 128 | AK129: Jakar | AM129: 1.32
S130: 3 | AJ130: 129 | AK130: Jakar | AM130: 1.33
S131: 3 | AJ131: 130 | AK131: Jakar | AM131: 1.34
A132: =IF(E132="","",IF(A132="",TODAY(),A132)) ->  | D132: =IF(B132="","",(C132-B132)) ->  | F132: =IFERROR(VLOOKUP(E132,$AJ$2:$AL$316,2,FALSE),"") ->  | H132: =IFERROR(G132/D132/24,"") ->  | J132: =IFERROR(I132/D132/24,"") ->  | K132: =IFERROR(L132/D132/24,"") ->  | S132: 3 | AJ132: 131 | AK132: Jakar | AM132: 1.35
Q133: =IFERROR(ROUND(SUM(L133*P133),2),"") ->  | S133: 3 | AJ133: 132 | AK133: Jakar | AM133: 1.36
S134: 3 | AJ134: 133 | AK134: Jakar | AM134: 1.37
S135: 3 | AJ135: 134 | AK135: Jakar | AM135: 1.38
S136: 3 | AJ136: 135 | AK136: Jakar | AM136: 1.39
S137: 3 | AJ137: 136 | AK137: Jakar | AM137: 1.4
S138: 3 | AJ138: 137 | AK138: Jakar | AM138: 1.41
S139: 3 | AJ139: 138 | AK139: Jakar | AM139: 1.42
S140: 3 | AJ140: 139 | AK140: Jakar | AM140: 1.43
S141: 3 | AJ141: 140 | AK141: Jakar | AM141: 1.44
S142: 3 | AJ142: 141 | AK142: Jakar | AM142: 1.45
S143: 3 | AJ143: 142 | AK143: Jakar | AM143: 1.46
S144: 3 | AJ144: 143 | AK144: Jakar | AM144: 1.47
S145: 3 | AJ145: 144 | AK145: Jakar | AM145: 1.48
S146: 3 | AJ146: 145 | AK146: Jakar | AM146: 1.49
S147: 3 | AJ147: 146 | AK147: Jakar | AM147: 1.5
S148: 3 | AJ148: 147 | AK148: Jakar | AM148: 1.51
S149: 3 | AJ149: 148 | AK149: Jakar | AM149: 1.52
S150: 3 | AJ150: 149 | AK150: Jakar | AM150: 1.53
S151: 3 | AJ151: 150 | AK151: Jakar | AM151: 1.54
S152: 3 | AJ152: 151 | AK152: Jakar | AM152: 1.55
S153: 3 | AJ153: 152 | AK153: Jakar | AM153: 1.56
P154: =IFERROR(ROUND(SUM(1000/M154),2),"") ->  | S154: 3 | AJ154: 153 | AK154: Jakar | AM154: 1.57
S155: 3 | AJ155: 154 | AK155: Jakar | AM155: 1.58
S156: 3 | AJ156: 155 | AK156: Jakar | AM156: 1.59
S157: 3 | AJ157: 156 | AK157: Jakar | AM157: 1.6
S158: 3 | AJ158: 157 | AK158: Jakar | AM158: 1.61
S159: 3 | AJ159: 158 | AK159: Jakar | AM159: 1.62
S160: 3 | AJ160: 159 | AK160: Jakar | AM160: 1.63
S161: 3 | AJ161: 160 | AK161: Jakar | AM161: 1.64
S162: 3 | AJ162: 161 | AK162: Jakar | AM162: 1.65
S163: 3 | AJ163: 162 | AK163: Jakar | AM163: 1.66
S164: 3 | AJ164: 163 | AK164: Jakar | AM164: 1.67
S165: 3 | AJ165: 164 | AK165: Jakar | AM165: 1.68
S166: 3 | AJ166: 165 | AK166: Jakar | AM166: 1.69
S167: 3 | AJ167: 166 | AK167: Jakar | AM167: 1.7
S168: 3 | AJ168: 167 | AK168: Jakar | AM168: 1.71
S169: 3 | AJ169: 168 | AK169: Jakar | AM169: 1.72
S170: 3 | AJ170: 169 | AK170: Jakar | AM170: 1.73
S171: 3 | AJ171: 170 | AK171: Jakar | AM171: 1.74
S172: 3 | AJ172: 171 | AK172: Jakar | AM172: 1.75
S173: 3 | AJ173: 172 | AK173: Jakar | AM173: 1.76
S174: 3 | AJ174: 173 | AK174: Jakar | AM174: 1.77
S175: 3 | AJ175: 174 | AK175: Jakar | AM175: 1.78
S176: 3 | AJ176: 175 | AK176: Jakar | AM176: 1.79
S177: 3 | AJ177: 176 | AK177: Jakar | AM177: 1.8
S178: 3 | AJ178: 177 | AK178: Jakar | AM178: 1.81
S179: 3 | AJ179: 178 | AK179: Jakar | AM179: 1.82
S180: 3 | AJ180: 179 | AK180: Jakar | AM180: 1.83
S181: 3 | AJ181: 180 | AK181: Jakar | AM181: 1.84
S182: 3 | AJ182: 181 | AK182: Jakar | AM182: 1.85
S183: 3 | AJ183: 182 | AK183: Jakar | AM183: 1.86
S184: 3 | AJ184: 183 | AK184: Jakar | AM184: 1.87
S185: 3 | AJ185: 184 | AK185: Jakar | AM185: 1.88
S186: 3 | AJ186: 185 | AK186: Jakar | AM186: 1.89
S187: 3 | AJ187: 186 | AK187: Jakar | AM187: 1.9
S188: 3 | AJ188: 187 | AK188: Jakar | AM188: 1.91
S189: 3 | AJ189: 188 | AK189: Jakar | AM189: 1.92
S190: 3 | AJ190: 189 | AK190: Jakar | AM190: 1.93
S191: 3 | AJ191: 190 | AK191: Jakar | AM191: 1.94
S192: 3 | AJ192: 191 | AK192: Jakar | AM192: 1.95
S193: 3 | AJ193: 192 | AK193: Jakar | AM193: 1.96
S194: 3 | AJ194: 193 | AK194: Jakar | AM194: 1.97
S195: 3 | AJ195: 194 | AK195: Jakar | AM195: 1.98
A196: =IF(E196="","",IF(A196="",TODAY(),A196)) ->  | D196: =IF(B196="","",(C196-B196)) ->  | F196: =IFERROR(VLOOKUP(E196,$AJ$2:$AL$316,2,FALSE),"") ->  | H196: =IFERROR(G196/D196/24,"") ->  | J196: =IFERROR(I196/D196/24,"") ->  | K196: =IFERROR(L196/D196/24,"") ->  | S196: 3 | AJ196: 195 | AK196: Jakar | AM196: 1.99
Q197: =IFERROR(ROUND(SUM(L197*P197),2),"") ->  | S197: 3 | AJ197: 196 | AK197: Jakar | AM197: 2
S198: 3 | AJ198: 197 | AK198: Jakar | AM198: 2.01
S199: 3 | AJ199: 198 | AK199: Jakar | AM199: 2.02
S200: 3 | AJ200: 199 | AK200: Jakar | AM200: 2.03
... 1801 more rows

Sheet Total Prodaction By shift
A1: From Date | B1: 2019-02-20 | D1: To Date | E1: 2019-02-20 | G1: Machine No. | H1: 2 | I1: Name of the employee | Y1: From Date | Z1: 2019-02-20 | AB1: To Date | AC1: 2019-02-21 | AE1: Machine No. | AF1: 2 | AG1: Name of the employee | AJ1: صبحي محمد محمود | AW1: From Date | AX1: 2019-02-20 | AZ1: To Date | BA1: 2019-02-21 | BC1: Machine No. | BD1: 2 | BE1: Name of the employee | BH1: خالد السيد عبد القادر | BU1: 1 | BV1: Date | BW1: Date | BX1: Machine No. | BY1: Machine Operator | BZ1: 2 | CA1: Date | CB1: Date | CC1: Machine No. | CD1: Machine Operator | CE1: 3 | CF1: Date | CG1: Date | CH1: Machine No. | CI1: Machine Operator | CK1: منصور محمد منصور | CM1: Date | CN1: Date | CO1: Machine Operator | CQ1: Date | CR1: Date | CS1: Machine Operator
BV2: =">="&B1 -> >=43516 | BW2: ="<="&E1 -> <=43516 | BX2: =H1 -> 2 | BY2: =L1 -> 0 | CA2: =">="&Z1 -> >=43516 | CB2: ="<="&AC1 -> <=43517 | CC2: =AF1 -> 2 | CD2: =AJ1 -> صبحي محمد محمود | CF2: =">="&AX1 -> >=43516 | CG2: ="<="&BA1 -> <=43517 | CH2: =BD1 -> 2 | CI2: =BH1 -> خالد السيد عبد القادر | CK2: علي مراد حسن | CM2: =">="&Z1 -> >=43516 | CN2: ="<="&AC1 -> <=43517 | CO2: =AJ1 -> صبحي محمد محمود
A3: Date | B3: Start Time | C3: End Time | D3: Total | E3: Machine No. | F3: Machine Name | G3: Capisty Power (Kgs / Shift ) | H3: Capisty Power Rate (KGS / 1 HRS) | I3: Minmum Power ( Kgs / Shift ) | J3: Minimum Power Rate (KGS / 1 HRS) | K3: Acual Production (KGS / 1 HRS) | L3: Production rate per Shift | M3: Gm/ML | N3: Size MM | O3: Drawing | P3: Mtrs \ KILO | Q3: MTRS \ SHIFT | R3: Color | S3: Shift | T3: Machine Operator | U3: Supervisor | V3: Po. No. | W3: Comment | Y3: Date | Z3: Start Time | AA3: End Time | AB3: Total | AC3: Machine No. | AD3: Machine Name | AE3: Capisty Power (Kgs / Shift ) | AF3: Capisty Power Rate (KGS / 1 HRS) | AG3: Minmum Power ( Kgs / Shift ) | AH3: Minimum Power Rate (KGS / 1 HRS) | AI3: Acual Production (KGS / 1 HRS) | AJ3: Production rate per Shift | AK3: Gm/ML | AL3: Size MM | AM3: Drawing | AN3: ML X KG. | AO3: ML.\ day | AP3: Color | AQ3: Shift | AR3: Name of the Employee | AS3: Name of Supervisor | AT3: OR No. | AU3: Comment | AW3: Date | AX3: Start Time | AY3: End Time | AZ3: Total | BA3: Machine No. | BB3: Machine Name | BC3: Capisty Power (Kgs / Shift ) | BD3: Capisty Power Rate (KGS / 1 HRS) | BE3: Minmum Power ( Kgs / Shift ) | BF3: Minimum Power Rate (KGS / 1 HRS) | BG3: Acual Production (KGS / 1 HRS) | BH3: Production rate per Shift | BI3: Gm/ML | BJ3: Size MM | BK3: Drawing | BL3: ML X KG. | BM3: ML.\ day | BN3: Color | BO3: Shift | BP3: Name of the Employee | BQ3: Name of Supervisor | BR3: OR No. | BS3: Comment | BU3: 1 | BV3: Date | BW3: Date | BX3: Machine Operator | CF3: Date | CG3: Date | CH3: Machine Operator | CK3: ابراهيم محمود ابراهيم
BV4: =">="&B1 -> >=43516 | BW4: ="<="&E1 -> <=43516 | BX4: =L1 -> 0 | CF4: =">="&AX1 -> >=43516 | CG4: ="<="&BA1 -> <=43517 | CH4: =BH1 -> خالد السيد عبد القادر | CK4: مسعد رمزي مسعد
BV5: Date | BW5: Date | BX5: Machine Operator | CK5: عادل عزمي شنودة
BV6: =">="&Z1 -> >=43516 | BW6: ="<="&AC1 -> <=43517 | BX6: =AJ1 -> صبحي محمد محمود | CK6: صبحي محمد محمود
BV7: Date | BW7: Date | BX7: Machine Operator | CK7: السيد محمد عبد العال
BV8: =">="&AX1 -> >=43516 | BW8: ="<="&BA1 -> <=43517 | BX8: =BH1 -> خالد السيد عبد القادر | CK8: عادل سيف الله السيد
CK9: خالد السيد عبد القادر
CK10: عادل صادق بشير
CK11: روماني عطية حبشي
CK12: احمد صادق توفيق
CK13: دينا مجدي ابراهيم
CK14: علي فرج على محمد
CK15: بوسي السيد عبد المنعم
CK16: محمد محمد عبد الوهاب

Sheet Sheet1

Sheet Sheet2
